Cogmind - Beta 13 @@@ ROGUE MODE // 2024.04.03 @ 07:29:34 Player: Blank Result: Destroyed by G-47 Trooper with Particle Gun Performance ------------- Evolutions (2) 1000 Regions Visited (3) 600 Robots Destroyed (31) 155 Value Destroyed (827) 827 Prototype IDs (1) 20 Alien Tech Used (0) 0 Bonus (0) 0 TOTAL SCORE: 2602 Bonus ------- None Cogmind --------- Core Integrity 0/550 Matter 290/300 Energy 265/265 System Corruption 5% Temperature Cool (9) Movement Core (300) Ox5 Location -8/Materials Parts ------- > --- POWER (2) -------- Improved Ion Engine > --- PROPULSION (3) --- (None) > --- UTILITY (3) ------ Thermal Generator > --- WEAPON (3) ------- Katana Katana > --- INVENTORY (5) ---- Improved EM Shotgun Beam Rifle Heavy Particle Gun Peak State ------------ > --- POWER ------------ Light Nuclear Core Light Nuclear Core > --- PROPULSION ------- Improved Flight Unit > --- UTILITY ---------- Terrain Scanner Reaction Control System Reaction Control System > --- WEAPON ----------- Katana Katana Katana > --- INVENTORY -------- Improved Ion Engine Katana [Rating: 25] Favorites ----------- Power Light Nuclear Core Engine Light Ion Engine Power Core Light Nuclear Core Propulsion Improved Flight Unit Leg Aluminum Leg Hover Unit Hover Unit Flight Unit Improved Flight Unit Utility Reaction Control System Device Reaction Control System Processor Signal Interpreter Weapon Katana Energy Gun EM Pulse Gun Ballistic Gun Assault Rifle Slashing Weapon Katana Special Melee Weapon Datajack Build | -11 -10 -9 -8 ------- Run | Yrd Mat Mat Mat Slots Evolved 4 | . . 2 2 Power 1 | . . . 1 Propulsion 1 | . . 1 . Utility 1 | . . 1 . Weapon 1 | . . . 1 Parts Attached 51 | 9 4 21 17 Power 10 | 1 . 4 5 Engine 6 | 1 . 2 3 Core 4 | . . 2 2 Reactor . | . . . . Propulsion 13 | 2 3 4 4 Treads . | . . . . Leg 2 | 2 . . . Wheel . | . . . . Hover 4 | . 2 2 . Flight 7 | . 1 2 4 Utility 13 | 3 . 6 4 Device 11 | 3 . 4 4 Storage . | . . . . Processor 2 | . . 2 . Hackware . | . . . . Protection . | . . . . Artifact . | . . . . Weapon 15 | 3 1 7 4 Energy Gun 7 | 2 1 3 1 Energy Cannon . | . . . . Ballistic Gun 2 | 1 . 1 . Ballistic Cannon . | . . . . Launcher . | . . . . Special Weapon . | . . . . Impact Weapon . | . . . . Slashing Weapon 5 | . . 2 3 Piercing Weapon . | . . . . Special Melee Weapon 1 | . . 1 . Unidentified Prototypes 1 | . . 1 . Parts Lost 34 | . 2 15 17 Power 8 | . 1 3 4 Propulsion 9 | . 1 3 5 Utility 9 | . . 4 5 Weapon 8 | . . 5 3 Highest Loss Streak 8 | . 2 6 8 To Critical Strikes 1 | . . . 1 Average Slot Usage (%) 71 | . 93 68 63 Engine 5 | . 11 3 9 Core 5 | . . 5 5 Leg 2 | . 14 . . Hover 4 | . 10 4 . Flight 8 | . . 7 15 Device 19 | . 28 21 10 Processor 3 | . . 5 . Energy Gun 8 | . 28 5 1 Ballistic Gun 1 | . . 2 . Slashing Weapon 13 | . . 13 21 Naked Turns . | . . . . Heaviest Build 25 | 8 9 12 25 Greatest Support 20 | 20 20 18 12 Greatest Overweight (x) 6 | . 1 2 6 Average Overweight (x) . | . . . 1 Largest Inventory Capacity 5 | 5 5 5 5 Average Capacity 5 | 5 5 5 5 Most Carried 5 | 2 5 5 5 Average Carried 3 | . 3 4 2 Final Capacity 5 | 5 5 5 5 Final Carried 5 | 2 5 5 3 Class Distribution -------------------- 71% | Mutant 28% | Scavenger-Mutant Dominant Class ---------------- Mutant | -10/Materials Mutant | -9/Materials Mutant | -8/Materials Resources | -11 -10 -9 -8 ----------- Run | Yrd Mat Mat Mat Matter Collected 685 | 286 30 207 162 Remotely 68 | 68 . . . Salvage Created 1235 | 124 128 533 450 Parts 83 | 11 8 45 19 Haulers Intercepted . | . . . . Recyclers Shooed . | . . . . Parts Field Recycled . | . . . . Retrieved Matter . | . . . . Parts Self-Destructed . | . . . . Prevented . | . . . . Kills | -11 -10 -9 -8 ------- Run | Yrd Mat Mat Mat Combat Hostiles Destroyed 22 | . 3 11 8 Melee 13 | . . 5 8 Guns 9 | . 3 6 . Classes Destroyed 8 | 2 3 3 . Builder 3 | . . 2 1 Tunneler 3 | 3 . . . Recycler 2 | 1 . . 1 Watcher 1 | . 1 . . Swarmer 4 | . 1 . 3 Grunt 11 | . 2 7 2 Brawler 2 | . . 1 1 Sentry 5 | . . 3 2 Best Kill Streak 4 | 4 2 3 4 Combat Bots Only 4 | . 2 3 4 Max Kills in Single Turn 2 | 2 1 1 1 Gunslinging . | . . . . Exploded . | . . . . Melee 1 | . . 1 1 Uniques/NPCs Destroyed . | . . . . Combat | -11 -10 -9 -8 -------- Run | Yrd Mat Mat Mat Hostile Shots Fired 277 | . 32 96 149 Missed 83 | . 14 28 41 Damage Taken 2339 | 40 181 943 1175 Core 903 | 20 47 282 554 Absorbed by Shields . | . . . . Core Remaining (%) 64 | 92 73 29 . Volleys Fired 48 | 6 7 32 3 Largest 2 | 2 2 2 1 Hottest 105 | 80 80 105 56 Shots Fired 82 | 12 14 53 3 Gun 82 | 12 14 53 3 Cannon . | . . . . Launcher . | . . . . Special . | . . . . Kinetic 15 | 2 . 13 . Thermal 39 | 6 . 30 3 Explosive . | . . . . Electromagnetic 28 | 4 14 10 . Robot Hit Streak 15 | 5 7 15 . Robot Miss Streak 3 | 2 1 3 3 Penetration Max . | . . . . Secondary Targets 1 | . 1 . . Max Gunslinging Chain 1 | . 1 . . Shots Hit Robots 90 | 7 10 50 23 Core Hits 39 | 4 4 20 11 Critical Kills . | . . . . Critical Parts Destroyed . | . . . . Critical Strikes 2 | . . 1 1 Sever 2 | . . 1 1 Melee Attacks 53 | . . 17 36 Impact . | . . . . Slashing 52 | . . 16 36 Piercing . | . . . . Sneak Attacks 3 | . . 1 2 Combat Hostiles . | . . . . Follow-up Attacks 5 | . . 1 4 Damage Inflicted 1828 | 124 145 781 778 Guns 715 | 94 145 476 . Cannons . | . . . . Explosions 30 | 30 . . . Melee 1082 | . . 304 778 Ramming 1 | . . 1 . Kinetic 120 | 11 . 109 . Thermal 372 | 72 . 300 . Explosive . | . . . . Electromagnetic 253 | 41 145 67 . Impact . | . . . . Slashing 1082 | . . 304 778 Piercing . | . . . . Highest Corruption 6 | . 2 6 5 Average Corruption 5 | . 2 6 5 Corruption Purged . | . . . . Corruption Blocked . | . . . . Effects 31 | . . 17 14 Message Errors 9 | . . 7 2 Matter Fused 8 | . . 4 4 Heat Flow Errors 3 | . . 1 2 Energy Discharges 5 | . . 1 4 Data Loss (minor) 4 | . . 2 2 Data Loss (major) 1 | . . 1 . Alerts 1 | . . 1 . Overload Shots . | . . . . Overflow Damage 33 | . . 33 . Projectiles . | . . . . Explosions . | . . . . Melee 33 | . . 33 . Knockbacks . | . . . . Impact . | . . . . Kinetic . | . . . . Secondary . | . . . . Self-Inflicted Damage 40 | 40 . . . Shots 1 | 1 . . . Rammed 2 | . . 2 . Targets Rammed 2 | . . 2 . Kicked . | . . . . Crushed . | . . . . Highest Temperature 236 | 36 138 236 217 Average Temperature 50 | 18 57 45 72 Received Heat Transfer 750 | . 63 435 252 Siege Activations . | . . . . Robots Corrupted . | . . . . Combat Hostiles . | . . . . Parts Fried . | . . . . Impact Corruptions . | . . . . Robots Melted . | . . . . Combat Hostiles . | . . . . Parts Melted . | . . . . Heat Transferred 849 | 150 . 699 . Parts Sabotaged . | . . . . Parts Stolen . | . . . . Parts Stripped . | . . . . Power Chain Reactions 1 | 1 . . . Alert | -11 -10 -9 -8 ------- Run | Yrd Mat Mat Mat Peak Influence 189 | 20 189 180 140 Initial 16 | . 13 16 5 Average 62 | 9 69 73 49 Maximum Alert Level . | . . . . Low Security (%) 100 | 100 100 100 100 Level 1 . | . . . . Level 2 . | . . . . Level 3 . | . . . . Level 4 . | . . . . Level 5 . | . . . . High Security . | . . . . Max Security . | . . . . Squads Dispatched 3 | . 1 1 1 Investigation 1 | . 1 . . Extermination . | . . . . Reinforcement 2 | . . 1 1 Assault . | . . . . Garrison . | . . . . Intercept . | . . . . Searches Triggered . | . . . . Construction Impeded . | . . . . Haulers Reinforced . | . . . . Active Scanning Responses . | . . . . Cargo Convoy Interrupts . | . . . . Stealth | -11 -10 -9 -8 --------- Run | Yrd Mat Mat Mat Distress Signals 5 | . . 3 2 Communications Jammed . | . . . . Distress Signals . | . . . . Times Spotted 49 | . 12 20 17 Peak Tracking Total 6 | . 6 5 5 Tactical Retreats 7 | . 3 4 . Traps | -11 -10 -9 -8 ------- Run | Yrd Mat Mat Mat Traps Triggered 2 | . 1 1 . Indirectly . | . . . . Trap Hack Attempts . | . . . . Triggered . | . . . . Disarmed . | . . . . Reprogrammed . | . . . . Reused . | . . . . Traps Extracted . | . . . . Installed . | . . . . Triggered . | . . . . Machines | -11 -10 -9 -8 ---------- Run | Yrd Mat Mat Mat Machines Disabled . | . . . . Max in Single Turn . | . . . . Machines Repaired . | . . . . Machines Dismantled . | . . . . Machines Sabotaged . | . . . . Overloaded Fab Kills . | . . . . Hacking | -11 -10 -9 -8 --------- Run | Yrd Mat Mat Mat Machines Accessed 10 | . 3 6 1 Terminals 6 | . 2 4 . Fabricators . | . . . . Repair Stations . | . . . . Recycling Units 1 | . 1 . . Scanalyzers 3 | . . 2 1 Garrison Access . | . . . . Total Hacks 27 | . 14 11 2 Successful 16 | . 6 8 2 Failed 11 | . 8 3 . Catastrophic 1 | . . 1 . Database Lockouts . | . . . . Manual 6 | . 4 2 . Terminals 16 | . 10 6 . Fabricators . | . . . . Repair Stations . | . . . . Recycling Units 4 | . 4 . . Scanalyzers 7 | . . 5 2 Garrison Access . | . . . . Terminal Hacks 5 | . 3 2 . Record 1 | . . 1 . Emergency Access Points 1 | . . 1 . Unreport Threat 1 | . 1 . . Dispatch Records 1 | . 1 . . Registered Components 1 | . 1 . . Fabricator Hacks . | . . . . Repair Station Hacks . | . . . . Recycling Unit Hacks 2 | . 2 . . Process 1 | . 1 . . Report Inventory 1 | . 1 . . Scanalyzer 6 | . . 4 2 Insert Component 4 | . . 3 1 Analyze 2 | . . 1 1 Garrison Access Hacks . | . . . . Unauthorized Hacks 3 | . 1 2 . Terminals 3 | . 1 2 . Track 3 | . 1 2 . Fabricators . | . . . . Repair Stations . | . . . . Recycling Units . | . . . . Scanalyzers . | . . . . Garrison Access . | . . . . Data Cores Recovered . | . . . . Used . | . . . . Hacking Detections 5 | . 3 2 . Full Trace Events 3 | . 1 2 . Feedback Events . | . . . . Feedback Blocked . | . . . . Robot Schematics Acquired . | . . . . Robots Built . | . . . . Authchips . | . . . . Time . | . . . . Total Robot Build Rating . | . . . . Part Schematics Acquired 2 | . . 1 1 Parts Built . | . . . . Authchips . | . . . . Time . | . . . . Total Part Build Rating . | . . . . Parts Repaired . | . . . . Time . | . . . . Parts Recycled . | . . . . Recycled Matter 8 | . 8 . . Retrieved Matter . | . . . . Retrieved Components . | . . . . Parts Scanalyzed 2 | . . 1 1 Part Schematics Acquired 2 | . . 1 1 Parts Damaged . | . . . . Bothacking | -11 -10 -9 -8 ------------ Run | Yrd Mat Mat Mat Used RIF Installer . | . . . . Robots Hacked 1 | . . 1 . Non-combat . | . . . . Combat 1 | . . 1 . Robot Hacks Applied 1 | . . 1 . parse_system 1 | . . 1 . Relay Couplers Released . | . . . . Fabnet Peak Effective % . | . . . . Robots Rewired . | . . . . Allies Hacked . | . . . . Hacks Repelled . | . . . . Allies | -11 -10 -9 -8 -------- Run | Yrd Mat Mat Mat Total Allies . | . . . . Largest Group . | . . . . Highest-Rated Group . | . . . . Highest-Rated Ally . | . . . . Total Orders . | . . . . Ally Attacks . | . . . . Total Damage . | . . . . Kills . | . . . . Allies Corrupted . | . . . . Allies Melted . | . . . . Intel | -11 -10 -9 -8 ------- Run | Yrd Mat Mat Mat Robot Analysis Total . | . . . . Derelict Logs Recovered . | . . . . Drone Launches . | . . . . Drone Recoveries . | . . . . Exploration | -11 -10 -9 -8 ------------- Run | Yrd Mat Mat Mat Turns Passed 2437 | 137 333 1348 619 Spaces Moved 1799 | 93 340 1069 297 Core 60 | 10 . 40 10 Treads . | . . . . Legs 192 | 83 109 . . Wheels . | . . . . Hover 607 | . 231 376 . Flight 940 | . . 653 287 Fastest Speed 34 | 50 56 40 34 Average Speed 113 | 112 81 108 165 Slowest Speed 520 | 120 120 180 520 Overloaded Moves . | . . . . Propulsion Burnouts . | . . . . Robots Hopped . | . . . . Cave-ins Triggered . | . . . . Exploration Rate (%) 33 | 5 46 65 19 Regions Visited 3 Branch Regions . Pre-discovered Areas . | . . . . Known Exits Taken . | . . . . Unknown Exits Taken 3 | 1 1 1 . Scrap Searched . | . . . . Spaces Dug 2 | . . 2 . Terrain Destroyed 4 | 2 . 2 . Melee 2 | . . 2 . Projectile . | . . . . AOE 2 | 2 . . . Terrain Rammed . | . . . . Walls Destroyed . | . . . . Machines Disabled . | . . . . Actions | -11 -10 -9 -8 --------- Run | Yrd Mat Mat Mat Total 2042 | 109 383 1177 373 Wait 67 | . 24 26 17 Move 1796 | 92 339 1068 297 Hop . | . . . . Pick Up 16 | 2 4 6 4 Fast Attach 37 | 7 2 16 12 Attach 11 | . 1 5 5 Detach 8 | . 2 4 2 Swap 3 | 2 1 . . Drop 11 | . 3 4 4 Fire 48 | 6 7 32 3 Melee 43 | . . 14 29 Ram 2 | . . 2 . Kick . | . . . . Crush . | . . . . Escape Stasis . | . . . . Rewire . | . . . . Trap . | . . . . Miscellaneous . | . . . . Route ------- -11/Scrapyard -10/Materials (discovered 3 exits: *Mat / [*Min x2]) -9/Materials (discovered 4 exits: *Mat x2 / [*Min] / [*Sto]) -8/Materials History --------- Turn | Location | Event 4 | -11/Scrapyard | Discovered new exit (range 16) 138 | -11/Scrapyard | Entered Materials 328 | -10/Materials | Build established: Mutant 363 | -10/Materials | Discovered new exit (range 11) 373 | -10/Materials | Discovered new exit (range 16) 467 | -10/Materials | Discovered new exit (range 7) 471 | -10/Materials | Entered another Materials area 471 | -9/Materials | Evolved 2 slots: Propulsion x1, Utility x1 754 | -9/Materials | Build established: Scavenger-Mutant 760 | -9/Materials | Discovered new exit (range 9) 859 | -9/Materials | Discovered new exit (range 12) 948 | -9/Materials | Lost 6 parts (1p2n1u2w) 1026 | -9/Materials | Core integrity fell below 50% 1103 | -9/Materials | Discovered new exit (range 14) 1161 | -9/Materials | Lost 3 parts (1p2u) 1195 | -9/Materials | Build established: Mutant 1567 | -9/Materials | Discovered new exit (range 15) 1819 | -9/Materials | Entered another Materials area 1819 | -8/Materials | Evolved 2 slots: Power x1, Weapon x1 2125 | -8/Materials | Core integrity fell below 50% 2171 | -8/Materials | Lost 8 parts (2p2n2u2w) 2382 | -8/Materials | Core integrity fell below 20% 2438 | -8/Materials | Destroyed by G-47 Trooper with Particle Gun Last Messages --------------- Flight Unit destroyed. R-06 Scavenger collects Com. Wheel. System corrupted: Component data lost. Lgt. Ion Engine destroyed. Acquired Thermal Generator. Katana destroyed. Acquired Thermal Generator. Dropped Flight Unit. K-01 Serf cleans the Fusion Modulator. Thermal Generator destroyed. Critical hit (Burn: +37). Acquired Thermal Generator. K-01 Serf cleans the Fusion Modulator. Thermal Generator destroyed. System corrupted: Energy discharge (-66). U-05 Engineer destroyed. R-06 Scavenger collects Flight Unit. R-06 Scavenger collects Terrain Scanner. Flight Unit destroyed. R-06 Scavenger collects Wheel. Map ----- +----------------------------------------------------+ | | | | | | | | | | | ?????????????????????????????????????????????????? | | ???#??????????????###########????????????????????? | | ??#??????#????????# #????????????????????? | | ??#?????????####### #????????????????????? | | ############# # """ #????????????????????? | | [ # """ #????????????????????? | | [[ ! + "S """ #????????????????????? | | %* # """ """ #????????????????????? | | ######+## # "" """ #????????????????????? | | ## ### ### ######???????????????? | | !## #?# #?########### #???????????????? | | !!!### #?# #???????????# #???????????????? | | ####?# #?# #???????????# ! #???????????????? | | #????# #?# #???????????# ! #???????????????? | | ????## #?# #???????????# #???????????????? | | ?????########?# #???????????# #???????????????? | | ??????????????# ############# #???????????????? | | ???#??????????#% + [ #???????????????? | | ? ????????????# ############# #???????????????? | | ??????????????# ##################???????????????? | | ??????????????# # + @g +?????????? | | ????????##+#### # = #### #?????????? | | ??####### #*%! / #????? #?????????? | | / !! / #??????? #?????????? | | # !%/ #????????? #?????????? | | ?""" """ [ T #[ #??????????? ??????????? | | ???"? """ [########????????????? ??????????? | | ????? """ #????????????????????????????????? | | ????? #????????????????????????????????? | | ???? ????????????????????????????????? | | ???T###########/#????????????????????????????????? | | ?????????????? ????????????????????????????????? | | ??????????????[ ????????????????????????????????? | | ??????????????[ "????????????????????????????????? | | ??????????????[ T ???????????????????????????????? | | ?????????????? " ???????????????????????????????? | | ?????????????? ???????????????????????????????? | | ??????????????####???????????????????????????????? | | ?????????????????????????????????????????????????? | | ?????????????????????????????????????????????????? | | ?????????????????????????????????????????????????? | | ?????????????????????????????????????????????????? | | ?????????????????????????????????????????????????? | | ?????????????????????????????????????????????????? | | ?????????????????????????????????????????????????? | +----------------------------------------------------+ Best States ------------- Heat Dissipation 31 Energy Generation 23 Energy Capacity 325 Matter Stores 300 Matter Capacity 300 Sight Range 16 Terrain Scan Range 16 Terrain Scan Density 10 Evasion (%) 63 Item Schematics ----------------- Tractor Beam | -9/Materials | Scanalyzed Flight Unit | -8/Materials | Scanalyzed Robot Schematics ------------------ None Fabricated ------------ Nothing Alien Tech Used ----------------- None Achievements -------------- None Challenges ------------ None Game ------ Seed InsulationRefineryWeb Manual? 0 Play Time 00:25:17 Cumulative 4.7 hours Start 2024.04.03 @ 07:07:58 End 2024.04.03 @ 07:29:34 Sessions 1 Manual Loads 0 Difficulty Rogue Special Mode None Game No. 7 Rogue 7 Adventurer 0 Explorer 0 Win Type - Total 0 Types 0/0/0/0/0/0/0/0/0 Lore% 6 Gallery% 9 Achievement% 10 Wizard Run 0 Options --------- Layout 1 ASCII 0 Keyboard 1 Movement Arrows Keybinds 0 Fullscreen 1 Font 24/Smallcaps Map View 50x35 Zoom Use 0% Tactical HUD 0 Map Filters NONE Filters NONE Steam 1 RUN: 71a69da9-9983-43cb-8712-a37ddf463046